Cogmind - Beta 11.1 *** ADVENTURER MODE // 2022.06.26 @ 20:36:32 Player: Sardaukar Result: Destroyed by D-53 Grenadier with Mini Grenade Launcher Performance ------------- Evolutions (0) 0 Regions Visited (2) 400 Robots Destroyed (9) 45 Value Destroyed (143) 143 Prototype IDs (2) 40 Alien Tech Used (0) 0 Bonus (0) 0 TOTAL SCORE: 628 Bonus ------- None Cogmind --------- Core Integrity 0/250 Matter 244/300 Energy 100/100 System Corruption 0% Temperature Cool (0) Movement Core (100) Ox1 Location -10/Mines Parts ------- > --- POWER (1) -------- (None) > --- PROPULSION (2) --- (None) > --- UTILITY (2) ------ Small Storage Unit Signal Interpreter > --- WEAPON (2) ------- (None) > --- INVENTORY (8) ---- Light Treads Light Treads Heat Sink Structural Scanner Light Armor Plating Assault Rifle Assault Rifle Assault Rifle Peak State ------------ > --- POWER ------------ Light Nuclear Core > --- PROPULSION ------- Aluminum Leg Aluminum Leg > --- UTILITY ---------- Small Storage Unit Signal Interpreter > --- WEAPON ----------- Heavy Assault Rifle Rocket Launcher > --- INVENTORY -------- Light Treads Light Treads Heat Sink Structural Scanner Light Armor Plating Assault Rifle Assault Rifle Assault Rifle [Rating: 11] Favorites ----------- Power Ion Engine Engine Ion Engine Power Core Light Nuclear Core Propulsion Aluminum Leg Leg Aluminum Leg Utility Small Storage Unit Device Structural Scanner Storage Small Storage Unit Processor Signal Interpreter Weapon Assault Rifle Energy Gun EM Pulse Gun Ballistic Gun Assault Rifle Launcher Rocket Launcher Build | -11 -10 -10 ------- Run | Scr Mat Min Slots Evolved . | . . . Power . | . . . Propulsion . | . . . Utility . | . . . Weapon . | . . . Parts Attached 12 | 6 3 3 Power 2 | 1 . 1 Engine 1 | 1 . . Core 1 | . . 1 Reactor . | . . . Propulsion 2 | 2 . . Treads . | . . . Leg 2 | 2 . . Wheel . | . . . Hover . | . . . Flight . | . . . Utility 3 | 1 2 . Device 1 | . 1 . Storage 1 | 1 . . Processor 1 | . 1 . Hackware . | . . . Protection . | . . . Artifact . | . . . Weapon 5 | 2 1 2 Energy Gun 1 | 1 . . Energy Cannon . | . . . Ballistic Gun 3 | 1 1 1 Ballistic Cannon . | . . . Launcher 1 | . . 1 Special Weapon . | . . . Impact Weapon . | . . . Slashing Weapon . | . . . Piercing Weapon . | . . . Special Melee Weapon . | . . . Unidentified Prototypes . | . . . Parts Lost 5 | . . 5 Power 1 | . . 1 Propulsion 2 | . . 2 Utility . | . . . Weapon 2 | . . 2 Highest Loss Streak 5 | . . 5 To Critical Strikes . | . . . Average Slot Usage (%) 97 | . 97 96 Engine 8 | . 14 2 Core 5 | . . 11 Leg 27 | . 28 27 Device 1 | . 3 . Storage 14 | . 14 14 Processor 11 | . 7 14 Energy Gun 2 | . 5 . Ballistic Gun 24 | . 22 25 Naked Turns . | . . . Heaviest Build 15 | 14 15 15 Greatest Support 20 | 20 20 20 Greatest Overweight (x) 1 | . . 1 Average Overweight (x) . | . . . Largest Inventory Capacity 8 | 8 8 8 Average Capacity 7 | 7 8 8 Most Carried 8 | 4 8 8 Average Carried 6 | 2 6 7 Final Capacity 8 | 8 8 8 Final Carried 8 | 4 8 8 Class Distribution -------------------- 100% | Mutant Dominant Class ---------------- Mutant | -10/Materials Mutant | -10/Mines Resources | -11 -10 -10 ----------- Run | Scr Mat Min Matter Collected 402 | 238 94 70 Remotely . | . . . Salvage Created 251 | 26 107 118 Parts 18 | 3 11 4 Haulers Intercepted 1 | . 1 . Recyclers Shooed . | . . . Parts Field Recycled . | . . . Retrieved Matter . | . . . Parts Self-Destructed . | . . . Prevented . | . . . Kills | -11 -10 -10 ------- Run | Scr Mat Min Combat Hostiles Destroyed 6 | . 3 3 Guns 6 | . 3 3 Classes Destroyed 6 | 1 3 2 Tunneler 2 | 1 . 1 Hauler 1 | . 1 . Watcher 1 | . 1 . Swarmer 3 | . 3 . Grunt 2 | . . 2 Assembled 1 | . . 1 Best Kill Streak 3 | 1 3 2 Combat Bots Only 3 | . 3 2 Max Kills in Single Turn 2 | 1 2 1 Gunslinging 1 | . 1 . Exploded . | . . . Melee . | . . . Uniques/NPCs Destroyed . | . . . Combat | -11 -10 -10 -------- Run | Scr Mat Min Damage Taken 788 | . 22 766 Core 287 | . 5 282 Absorbed by Shields . | . . . Core Remaining (%) 100 | 100 . . Volleys Fired 25 | 3 6 16 Largest 2 | 2 2 2 Hottest 60 | 60 60 43 Shots Fired 45 | 6 12 27 Gun 40 | 6 12 22 Cannon . | . . . Launcher 5 | . . 5 Special . | . . . Kinetic 36 | 3 11 22 Thermal . | . . . Explosive 5 | . . 5 Electromagnetic 4 | 3 1 . Robot Hit Streak 37 | 5 16 37 Robot Miss Streak 1 | . . 1 Penetration Max . | . . . Secondary Targets 2 | . 1 1 Max Gunslinging Chain 1 | . 1 1 Shots Hit Robots 38 | 5 11 22 Core Hits 23 | 2 5 16 Critical Kills . | . . . Critical Parts Destroyed . | . . . Critical Strikes 1 | . 1 . Corrupt 1 | . 1 . Melee Attacks . | . . . Impact . | . . . Slashing . | . . . Piercing . | . . . Sneak Attacks . | . . . Combat Hostiles . | . . . Follow-up Attacks . | . . . Damage Inflicted 530 | 72 136 322 Guns 439 | 72 136 231 Cannons . | . . . Explosions 91 | . . 91 Melee . | . . . Ramming . | . . . Kinetic 374 | 29 114 231 Thermal . | . . . Explosive 91 | . . 91 Electromagnetic 65 | 43 22 . Impact . | . . . Slashing . | . . . Piercing . | . . . Highest Corruption . | . . . Average Corruption . | . . . Corruption Purged . | . . . Corruption Blocked . | . . . Overload Shots . | . . . Overflow Damage . | . . . Projectiles . | . . . Explosions . | . . . Melee . | . . . Knockbacks . | . . . Impact . | . . . Kinetic . | . . . Secondary . | . . . Self-Inflicted Damage 36 | . . 36 Shots 3 | . . 3 Rammed . | . . . Targets Rammed . | . . . Kicked . | . . . Crushed . | . . . Highest Temperature 16 | . . 16 Average Temperature 7 | . . 7 Received Heat Transfer 72 | . . 72 Siege Activations . | . . . Robots Corrupted . | . . . Combat Hostiles . | . . . Parts Fried . | . . . Impact Corruptions . | . . . Robots Melted . | . . . Combat Hostiles . | . . . Parts Melted . | . . . Heat Transferred . | . . . Parts Sabotaged . | . . . Parts Stolen . | . . . Parts Stripped . | . . . Power Chain Reactions . | . . . Missiles Intercepted . | . . . Alert | -11 -10 -10 ------- Run | Scr Mat Min Peak Influence 132 | 5 102 132 Initial 33 | . 2 33 Average 49 | . 27 83 Maximum Alert Level . | . . . Low Security (%) 100 | 100 100 100 Level 1 . | . . . Level 2 . | . . . Level 3 . | . . . Level 4 . | . . . Level 5 . | . . . High Security . | . . . Max Security . | . . . Squads Dispatched . | . . . Investigation . | . . . Extermination . | . . . Reinforcement . | . . . Assault . | . . . Garrison . | . . . Intercept . | . . . Searches Triggered . | . . . Construction Impeded . | . . . Haulers Reinforced . | . . . Active Scanning Responses . | . . . Cargo Convoy Interrupts . | . . . Stealth | -11 -10 -10 --------- Run | Scr Mat Min Distress Signals . | . . . Communications Jammed . | . . . Distress Signals . | . . . Times Spotted 9 | . 3 6 Peak Tracking Total 3 | . 3 3 Tactical Retreats . | . . . Traps | -11 -10 -10 ------- Run | Scr Mat Min Traps Triggered . | . . . Indirectly . | . . . Trap Hack Attempts . | . . . Triggered . | . . . Disarmed . | . . . Reprogrammed . | . . . Reused . | . . . Traps Extracted . | . . . Installed . | . . . Triggered . | . . . Machines | -11 -10 -10 ---------- Run | Scr Mat Min Machines Disabled . | . . . Max in Single Turn . | . . . Machines Sabotaged . | . . . Garrisons Compromised . | . . . Overloaded Fab Kills . | . . . Hacking | -11 -10 -10 --------- Run | Scr Mat Min Machines Accessed 3 | . 3 . Terminals 3 | . 3 . Fabricators . | . . . Repair Stations . | . . . Recycling Units . | . . . Scanalyzers . | . . . Garrison Access . | . . . Total Hacks 9 | . 9 . Successful 6 | . 6 . Failed 3 | . 3 . Catastrophic . | . . . Database Lockouts . | . . . Manual 9 | . 9 . Terminals 9 | . 9 . Fabricators . | . . . Repair Stations . | . . . Recycling Units . | . . . Scanalyzers . | . . . Garrison Access . | . . . Terminal Hacks 6 | . 6 . Prototype ID Bank 1 | . 1 . Branch Access Points 1 | . 1 . Terminal Index 1 | . 1 . Alert Level 1 | . 1 . Locate Traps 1 | . 1 . Zone Layout 1 | . 1 . Fabricator Hacks . | . . . Repair Station Hacks . | . . . Recycling Unit Hacks . | . . . Scanalyzer . | . . . Garrison Access Hacks . | . . . Unauthorized Hacks . | . . . Terminals . | . . . Fabricators . | . . . Repair Stations . | . . . Recycling Units . | . . . Scanalyzers . | . . . Garrison Access . | . . . Data Cores Recovered . | . . . Used . | . . . Hacking Detections 2 | . 2 . Full Trace Events . | . . . Feedback Events . | . . . Feedback Blocked . | . . . Robot Schematics Acquired . | . . . Robots Built . | . . . Authchips . | . . . Time . | . . . Total Robot Build Rating . | . . . Part Schematics Acquired . | . . . Parts Built . | . . . Authchips . | . . . Time . | . . . Total Part Build Rating . | . . . Parts Repaired . | . . . Time . | . . . Parts Recycled . | . . . Recycled Matter . | . . . Retrieved Matter . | . . . Retrieved Components . | . . . Parts Scanalyzed . | . . . Part Schematics Acquired . | . . . Parts Damaged . | . . . Bothacking | -11 -10 -10 ------------ Run | Scr Mat Min Used RIF Installer . | . . . Robots Hacked . | . . . Non-combat . | . . . Combat . | . . . Robot Hacks Applied . | . . . Relay Couplers Released . | . . . Fabnet Peak Effective % . | . . . Robots Rewired . | . . . Allies Hacked . | . . . Hacks Repelled . | . . . Allies | -11 -10 -10 -------- Run | Scr Mat Min Total Allies . | . . . Largest Group . | . . . Highest-Rated Group . | . . . Highest-Rated Ally . | . . . Total Orders . | . . . Ally Attacks . | . . . Total Damage . | . . . Kills . | . . . Allies Corrupted . | . . . Allies Melted . | . . . Intel | -11 -10 -10 ------- Run | Scr Mat Min Robot Analysis Total . | . . . Derelict Logs Recovered 1 | . . 1 Drone Launches . | . . . Drone Recoveries . | . . . Exploration | -11 -10 -10 ------------- Run | Scr Mat Min Turns Passed 532 | 66 229 237 Spaces Moved 355 | 40 164 151 Core 6 | 4 . 2 Treads . | . . . Legs 349 | 36 164 149 Wheels . | . . . Hover . | . . . Flight . | . . . Fastest Speed 50 | 50 120 100 Average Speed 119 | 113 120 119 Slowest Speed 120 | 120 120 120 Overloaded Moves . | . . . Propulsion Burnouts . | . . . Robots Hopped . | . . . Cave-ins Triggered . | . . . Exploration Rate (%) 27 | 4 37 41 Regions Visited 2 Branch Regions 1 Pre-discovered Areas . | . . . Known Exits Taken 1 | . 1 . Unknown Exits Taken 1 | 1 . . Scrap Searched . | . . . Spaces Dug . | . . . Terrain Destroyed 40 | . . 40 Melee . | . . . Projectile . | . . . AOE 40 | . . 40 Terrain Rammed . | . . . Walls Destroyed . | . . . Machines Disabled . | . . . Actions | -11 -10 -10 --------- Run | Scr Mat Min Total 418 | 52 184 182 Wait 5 | . 5 . Move 353 | 39 163 151 Hop . | . . . Pick Up 14 | 4 5 5 Fast Attach 9 | 6 2 1 Attach 1 | . 1 . Detach . | . . . Swap 2 | . . 2 Drop 9 | . 2 7 Fire 25 | 3 6 16 Melee . | . . . Ram . | . . . Kick . | . . . Crush . | . . . Escape Stasis . | . . . Rewire . | . . . Trap . | . . . Miscellaneous . | . . . Route ------- -11/Scrapyard -10/Materials (discovered 3 exits: *Mat / *Min x2) -10/Mines History --------- Turn | Location | Event 20 | -11/Scrapyard | Discovered new exit (range 16) 67 | -11/Scrapyard | Entered Materials 111 | -10/Materials | Discovered new exit (range 15) 161 | -10/Materials | Discovered new exit (range 15) 223 | -10/Materials | Identified exit to Materials 282 | -10/Materials | Discovered new exit (range 12) 284 | -10/Materials | Identified exit to Mines 296 | -10/Materials | Entered Mines 300 | -10/Mines | Met a Derelict bent on vengeance 317 | -10/Mines | Build established: Mutant 373 | -10/Mines | Joined a pair of Derelicts in attacking an 0b10 outpost 430 | -10/Mines | Received a Rocket Launcher from a helpful Derelict 478 | -10/Mines | Assembled infested the area 528 | -10/Mines | Core integrity fell below 50% 532 | -10/Mines | Core integrity fell below 20% 533 | -10/Mines | Destroyed by D-53 Grenadier with Mini Grenade Launcher Last Messages --------------- Data stored: Mines entrances (x2). 00459_ EF-71D(g): "TASTE MY VENGEANCE!" 00465_ T-07 Excavator destroyed. 00468_ Acquired 22 matter. 00470_ Acquired 2 matter. 00478_ ALERT: Infestation in the mines, dispatching Demolisher response squad. 00511_ as-37829 destroyed. 00513_ C-30 ARC bursts open, deploying its payload. 00513_ D-53 Grenadier unfolds itself. 00519_ Hvy. Assault Rifle destroyed. 00520_ The unstable cave ceiling collapses. 00525_ Aluminum Leg destroyed. 00525_ Rocket Launcher destroyed. 00526_ The unstable cave ceiling collapses. 00527_ Lgt. Nuclear Core destroyed. 00528_ The unstable cave ceiling collapses. 00530_ Aluminum Leg destroyed. 00531_ as-39483 destroyed. 00533_ The unstable cave ceiling collapses. Map ----- +----------------------------------------------------+ | | | ????????????????????????????????? | | ????????????????????????????????? | | ????????????????????????????????? | | ????????????????????????????????? | | ????????????????????????????????? | | ????????????????????????????????? | | ????????????????????????????????? | | ????????????????????????????????? | | ????????????????????????????????? | | ????????????????????????????????? | | ????????????????????????????????? | | ????????????????????????????????? | | ???###??????????????????????????? | | ??## ##?????????????????????????? | | ?## ##????????????????????????? | | ?# #????????????????????????? | | ?# #????????????????????????? | | ?# #????????????????????????? | | ?? #????????????????????????? | | ### ###??????????????????????? | | ##?????????????????????? | | #?????????????????????? | | ##????????????????????? | | # ## #?????????????????? | | @ % #?????????????????? | | ####?????????????????? | | #????????????????????? | | #???????????????????? | | dd ##???????????????????? | | ####???????????????????? | | # ##??????????????????? | | # ##??????????????????? | | # #####??????????????? | | # ### ##?????????????? | | ### ##?### ###???????????? | | ??######????## ##??????????# | | ?????????????# ##?????????# | | ?????????????# #?????????# | | ?????????????## #????????## | | ??????????????## ##???????## | | ???????????????##### #???????## | | ???????????????????# ######### | | ???????????????????# ##* | | ??????????????###### ## ###### | | ??????????????# #????## | | ??????????????# ####?????# | | ??????????????# #####????????## | | ??????????????# ???????????????## | | ??????????????#?????????????????# | +----------------------------------------------------+ Best States ------------- Heat Dissipation 25 Energy Generation 14 Energy Capacity 250 Matter Stores 300 Matter Capacity 300 Sight Range 16 Terrain Scan Density 10 Resistance: KI 20 Resistance: TH 20 Resistance: EX 20 Resistance: EM 20 Resistance: I 20 Resistance: S 20 Resistance: P 20 Evasion (%) 55 Offensive Hacking 10 Item Schematics ----------------- None Robot Schematics ------------------ None Fabricated ------------ Nothing Alien Tech Used ----------------- None Achievements -------------- None Challenges ------------ None Game ------ Seed StructuralAlloyNanoactuators Manual? 0 Play Time 00:09:32 Cumulative 192.1 hours Start 2022.06.26 @ 19:35:17 End 2022.06.26 @ 20:36:32 Sessions 3 Manual Loads 0 Difficulty Adventurer Special Mode None Game No. 46 Rogue 0 Adventurer 40 Explorer 6 Win Type - Total 3 Types 2/0/1/0/0/0/0/0/0 Lore% 52 Gallery% 66 Achievement% 48 Wizard Run 0 Options --------- ASCII 0 Keyboard 0 Movement Mouse Keybinds 0 Fullscreen 2 Font 20/Terminus Map View 66x50 Tactical HUD 1 Map Filters NONE Filters NONE Steam 1 RUN: df572672-6a82-45d2-886d-91571bff3b43